[Event "Early-Titled-Tuesday-Blitz-February-06-2024"]
[Site "Chess.com"]
[Date "2024.02.06"]
[Round "11"]
[White "ljuks68"]
[Black "ProChessWICTH"]
[Result "0-1"]
[WhiteElo "2428"]
[BlackElo "2524"]
[TimeControl "180+1"]
[EndTime "10:06:48 PST"]
[Termination "ProChessWICTH won on time"]

1. e4 {[%clk 0:03:00.9]} 1... c5 {[%clk 0:02:59.7]} 2. Nf3 {[%clk 0:03:01]} 2...
e6 {[%clk 0:03:00.1]} 3. d4 {[%clk 0:03:01.5]} 3... cxd4 {[%clk 0:03:01]} 4.
Nxd4 {[%clk 0:03:01.9]} 4... a6 {[%clk 0:03:01.7]} 5. Bd3 {[%clk 0:03:01.8]}
5... Bc5 {[%clk 0:03:01.5]} 6. Nb3 {[%clk 0:03:01.6]} 6... Ba7 {[%clk
0:03:02.1]} 7. c4 {[%clk 0:03:01.4]} 7... Ne7 {[%clk 0:02:59.1]} 8. Nc3 {[%clk
0:03:01.4]} 8... O-O {[%clk 0:02:55.3]} 9. O-O {[%clk 0:03:01.4]} 9... Nbc6
{[%clk 0:02:35.1]} 10. Bf4 {[%clk 0:02:58.5]} 10... e5 {[%clk 0:02:25.2]} 11.
Be3 {[%clk 0:02:55.6]} 11... Bxe3 {[%clk 0:02:22]} 12. fxe3 {[%clk 0:02:55.7]}
12... d6 {[%clk 0:02:22.7]} 13. Nd5 {[%clk 0:02:52.7]} 13... Be6 {[%clk
0:02:19]} 14. Rc1 {[%clk 0:02:46.4]} 14... Rc8 {[%clk 0:02:15.9]} 15. Qd2 {[%clk
0:02:35.5]} 15... Ng6 {[%clk 0:02:05.9]} 16. Be2 {[%clk 0:02:20.7]} 16... Nce7
{[%clk 0:02:02.7]} 17. Qb4 {[%clk 0:02:12.2]} 17... Bxd5 {[%clk 0:01:49]} 18.
cxd5 {[%clk 0:02:10.2]} 18... Qd7 {[%clk 0:01:34.7]} 19. Na5 {[%clk 0:01:49.2]}
19... b5 {[%clk 0:01:19.1]} 20. a4 {[%clk 0:01:36.1]} 20... bxa4 {[%clk
0:01:17.7]} 21. Bxa6 {[%clk 0:01:36]} 21... Rb8 {[%clk 0:01:16.1]} 22. Bb7
{[%clk 0:01:31.7]} 22... f5 {[%clk 0:01:06.8]} 23. exf5 {[%clk 0:01:08.5]} 23...
Nxf5 {[%clk 0:01:05.5]} 24. Qg4 {[%clk 0:01:04.5]} 24... Rf7 {[%clk 0:00:25.8]}
25. e4 {[%clk 0:00:58.7]} 25... Nd4 {[%clk 0:00:25]} 26. Qxd7 {[%clk 0:00:41.3]}
26... Rxd7 {[%clk 0:00:20.1]} 27. Bc6 {[%clk 0:00:37.5]} 27... Ra7 {[%clk
0:00:16.4]} 28. Nc4 {[%clk 0:00:35.9]} 28... Ne2+ {[%clk 0:00:16.4]} 29. Kh1
{[%clk 0:00:32.1]} 29... Nxc1 {[%clk 0:00:16.7]} 30. Rxc1 {[%clk 0:00:31.9]}
30... Rd8 {[%clk 0:00:17.2]} 31. g3 {[%clk 0:00:29.6]} 31... Ne7 {[%clk
0:00:17.3]} 32. Ne3 {[%clk 0:00:15.6]} 32... Rc8 {[%clk 0:00:16]} 33. Nf5 {[%clk
0:00:09.8]} 33... Nxf5 {[%clk 0:00:12.7]} 34. exf5 {[%clk 0:00:10]} 34... Rb7
{[%clk 0:00:12]} 35. Rc2 {[%clk 0:00:09.7]} 35... Rb4 {[%clk 0:00:11.7]} 36. Kg2
{[%clk 0:00:09.2]} 36... Kf8 {[%clk 0:00:11.9]} 37. Kf3 {[%clk 0:00:09.3]} 37...
Ke7 {[%clk 0:00:12.3]} 38. g4 {[%clk 0:00:09.6]} 38... Rcb8 {[%clk 0:00:12.7]}
39. Rc3 {[%clk 0:00:03.5]} 39... Rc8 {[%clk 0:00:05.3]} 40. g5 {[%clk
0:00:01.5]} 40... Rcb8 {[%clk 0:00:03.1]} 0-1

[Event "Early-Titled-Tuesday-Blitz-February-06-2024"]
[Site "Chess.com"]
[Date "2024.02.06"]
[Round "11"]
[White "JiiHart"]
[Black "deepfear"]
[Result "1-0"]
[WhiteElo "2141"]
[BlackElo "1968"]
[TimeControl "180+1"]
[EndTime "10:06:53 PST"]
[Termination "JiiHart won on time"]

1. e4 {[%clk 0:02:57.3]} 1... c5 {[%clk 0:02:59.8]} 2. c3 {[%clk 0:02:56.9]}
2... d5 {[%clk 0:02:56]} 3. exd5 {[%clk 0:02:56.7]} 3... Qxd5 {[%clk 0:02:56]}
4. d4 {[%clk 0:02:56.5]} 4... cxd4 {[%clk 0:02:55.7]} 5. cxd4 {[%clk 0:02:56.3]}
5... Nf6 {[%clk 0:02:51.8]} 6. Nc3 {[%clk 0:02:53.1]} 6... Qd8 {[%clk
0:02:50.7]} 7. Nf3 {[%clk 0:02:51]} 7... e6 {[%clk 0:02:42.9]} 8. Bd3 {[%clk
0:02:45.5]} 8... Nc6 {[%clk 0:02:38.7]} 9. O-O {[%clk 0:02:42]} 9... Be7 {[%clk
0:02:32.8]} 10. a3 {[%clk 0:02:39]} 10... O-O {[%clk 0:02:32.2]} 11. Bc2 {[%clk
0:02:32.5]} 11... a6 {[%clk 0:02:14.4]} 12. Qd3 {[%clk 0:02:30]} 12... g6 {[%clk
0:02:07.3]} 13. Bh6 {[%clk 0:02:08.7]} 13... Re8 {[%clk 0:02:06.4]} 14. Rad1
{[%clk 0:02:04]} 14... b5 {[%clk 0:02:01.3]} 15. Rfe1 {[%clk 0:01:58]} 15... Bb7
{[%clk 0:01:57.4]} 16. h3 {[%clk 0:01:53.1]} 16... Qc7 {[%clk 0:01:40.7]} 17.
Qe2 {[%clk 0:01:09.3]} 17... Rad8 {[%clk 0:01:28.1]} 18. Bb3 {[%clk 0:00:21]}
18... Bf8 {[%clk 0:01:23.1]} 19. Bg5 {[%clk 0:00:17.3]} 19... Be7 {[%clk
0:01:03.2]} 20. Qd2 {[%clk 0:00:16.7]} 20... Na5 {[%clk 0:00:53.9]} 21. Ba2
{[%clk 0:00:17]} 21... Nc4 {[%clk 0:00:52.4]} 22. Qc1 {[%clk 0:00:14.5]} 22...
Bxf3 {[%clk 0:00:51.9]} 23. gxf3 {[%clk 0:00:14.8]} 23... Qc6 {[%clk 0:00:49]}
24. Kg2 {[%clk 0:00:14.9]} 24... Rc8 {[%clk 0:00:46.6]} 25. Ne4 {[%clk
0:00:12.6]} 25... Nxe4 {[%clk 0:00:46.3]} 26. fxe4 {[%clk 0:00:11.8]} 26... f5
{[%clk 0:00:39.4]} 27. Bxe7 {[%clk 0:00:10.4]} 27... Rxe7 {[%clk 0:00:39.3]} 28.
Bxc4 {[%clk 0:00:09.9]} 28... bxc4 {[%clk 0:00:37.3]} 29. d5 {[%clk 0:00:08.7]}
29... exd5 {[%clk 0:00:36.6]} 30. exd5 {[%clk 0:00:09.2]} 30... Qb7 {[%clk
0:00:31.7]} 31. Rxe7 {[%clk 0:00:08.7]} 31... Qxe7 {[%clk 0:00:31.8]} 32. Re1
{[%clk 0:00:08.9]} 32... Qd6 {[%clk 0:00:27.8]} 33. Qd2 {[%clk 0:00:08.2]} 33...
Rd8 {[%clk 0:00:26.4]} 34. Rd1 {[%clk 0:00:06.8]} 34... Re8 {[%clk 0:00:23.8]}
35. Qd4 {[%clk 0:00:06.6]} 35... Rd8 {[%clk 0:00:17]} 36. Qxc4 {[%clk
0:00:06.5]} 36... a5 {[%clk 0:00:17.1]} 37. b4 {[%clk 0:00:06.6]} 37... axb4
{[%clk 0:00:16]} 38. axb4 {[%clk 0:00:07.5]} 38... Qe5 {[%clk 0:00:14.9]} 39.
d6+ {[%clk 0:00:07.3]} 39... Kg7 {[%clk 0:00:14.6]} 40. d7 {[%clk 0:00:07.6]}
40... f4 {[%clk 0:00:08.6]} 41. Qd4 {[%clk 0:00:06.5]} 41... Qf6 {[%clk
0:00:03.6]} 42. Qxf6+ {[%clk 0:00:06]} 42... Kxf6 {[%clk 0:00:04.5]} 43. Kf3
{[%clk 0:00:06.5]} 43... g5 {[%clk 0:00:04.5]} 44. Kg4 {[%clk 0:00:06.5]} 44...
h6 {[%clk 0:00:03.9]} 45. Kh5 {[%clk 0:00:06.8]} 1-0

[Event "Early-Titled-Tuesday-Blitz-February-06-2024"]
[Site "Chess.com"]
[Date "2024.02.06"]
[Round "11"]
[White "NovozhilovSemen"]
[Black "Kotlyar_K"]
[Result "1-0"]
[WhiteElo "2676"]
[BlackElo "2502"]
[TimeControl "180+1"]
[EndTime "10:06:54 PST"]
[Termination "NovozhilovSemen won by checkmate"]

1. d4 {[%clk 0:02:59.8]} 1... Nf6 {[%clk 0:03:00.6]} 2. Nf3 {[%clk 0:02:59.5]}
2... c5 {[%clk 0:02:59]} 3. d5 {[%clk 0:02:59.5]} 3... e6 {[%clk 0:02:59.5]} 4.
c4 {[%clk 0:02:59.6]} 4... exd5 {[%clk 0:03:00.2]} 5. cxd5 {[%clk 0:03:00.5]}
5... d6 {[%clk 0:03:00.8]} 6. Nc3 {[%clk 0:03:00.9]} 6... g6 {[%clk 0:03:00.9]}
7. h3 {[%clk 0:03:01.3]} 7... Bg7 {[%clk 0:03:00.9]} 8. e4 {[%clk 0:03:01.8]}
8... O-O {[%clk 0:03:01.1]} 9. Bd3 {[%clk 0:03:02.1]} 9... b5 {[%clk 0:03:01.4]}
10. Bxb5 {[%clk 0:03:01.8]} 10... Nxe4 {[%clk 0:03:00.5]} 11. Nxe4 {[%clk
0:03:02.7]} 11... Qa5+ {[%clk 0:03:00.4]} 12. Nfd2 {[%clk 0:03:03]} 12... Qxb5
{[%clk 0:02:58.9]} 13. Nxd6 {[%clk 0:03:03.3]} 13... Qa6 {[%clk 0:02:56.6]} 14.
N2c4 {[%clk 0:03:03.5]} 14... Nd7 {[%clk 0:02:57]} 15. O-O {[%clk 0:03:02.3]}
15... Ne5 {[%clk 0:02:57.3]} 16. Nxe5 {[%clk 0:02:53.9]} 16... Bxe5 {[%clk
0:02:58.2]} 17. Nxc8 {[%clk 0:02:54.1]} 17... Raxc8 {[%clk 0:02:58.8]} 18. Re1
{[%clk 0:02:54.6]} 18... Bd4 {[%clk 0:02:55.1]} 19. Bf4 {[%clk 0:02:47.5]} 19...
Qb7 {[%clk 0:02:47]} 20. d6 {[%clk 0:02:33.5]} 20... Qxb2 {[%clk 0:02:45.7]} 21.
Qf3 {[%clk 0:02:31.9]} 21... Qc3 {[%clk 0:02:23.2]} 22. Qd5 {[%clk 0:02:21.9]}
22... Qc2 {[%clk 0:02:14.3]} 23. Bg3 {[%clk 0:02:04]} 23... Bxa1 {[%clk
0:02:13.5]} 24. Rxa1 {[%clk 0:02:04.9]} 24... Qf5 {[%clk 0:02:06.4]} 25. Qd2
{[%clk 0:01:57.9]} 25... Rfd8 {[%clk 0:02:03]} 26. Rd1 {[%clk 0:01:56.2]} 26...
Rd7 {[%clk 0:02:01.1]} 27. Re1 {[%clk 0:01:55.8]} 27... c4 {[%clk 0:01:57.7]}
28. Qc3 {[%clk 0:01:48.8]} 28... Qd5 {[%clk 0:01:31.5]} 29. Qf6 {[%clk
0:01:17.4]} 29... Qf5 {[%clk 0:01:28.4]} 30. Qc3 {[%clk 0:01:16.8]} 30... h6
{[%clk 0:01:22.1]} 31. Rd1 {[%clk 0:01:10.2]} 31... Kh7 {[%clk 0:01:17.9]} 32.
Rd4 {[%clk 0:01:09.2]} 32... Qe6 {[%clk 0:01:14]} 33. Rh4 {[%clk 0:01:03.9]}
33... g5 {[%clk 0:01:10.8]} 34. Rd4 {[%clk 0:01:01.3]} 34... Qf6 {[%clk
0:01:05.3]} 35. Qc2+ {[%clk 0:00:56.7]} 35... Qg6 {[%clk 0:01:05]} 36. Qc3
{[%clk 0:00:56.7]} 36... Qe6 {[%clk 0:00:39.3]} 37. h4 {[%clk 0:00:53.8]} 37...
f5 {[%clk 0:00:33.5]} 38. hxg5 {[%clk 0:00:15.6]} 38... hxg5 {[%clk 0:00:34.4]}
39. Qc2 {[%clk 0:00:16.2]} 39... Kg6 {[%clk 0:00:31.1]} 40. f4 {[%clk
0:00:14.6]} 40... Rxd6 {[%clk 0:00:22.6]} 41. Rxd6 {[%clk 0:00:13.6]} 41... Qxd6
{[%clk 0:00:23.5]} 42. Qa4 {[%clk 0:00:14.5]} 42... Qd1+ {[%clk 0:00:20.5]} 43.
Qxd1 {[%clk 0:00:13.9]} 43... c3 {[%clk 0:00:18.2]} 44. Qc2 {[%clk 0:00:13.8]}
44... Rc4 {[%clk 0:00:15.3]} 45. fxg5 {[%clk 0:00:12.5]} 45... Kxg5 {[%clk
0:00:14.5]} 46. Be1 {[%clk 0:00:12.3]} 46... f4 {[%clk 0:00:13.5]} 47. Bxc3
{[%clk 0:00:12.5]} 47... Rc5 {[%clk 0:00:14.1]} 48. Bf6+ {[%clk 0:00:12]} 48...
Kg4 {[%clk 0:00:13.5]} 49. Qxc5 {[%clk 0:00:12.9]} 49... f3 {[%clk 0:00:12.9]}
50. Qg5# {[%clk 0:00:13.2]} 1-0

[Event "Early-Titled-Tuesday-Blitz-February-06-2024"]
[Site "Chess.com"]
[Date "2024.02.06"]
[Round "11"]
[White "CristianS27"]
[Black "ValentinDragnev"]
[Result "0-1"]
[WhiteElo "2571"]
[BlackElo "2751"]
[TimeControl "180+1"]
[EndTime "10:06:54 PST"]
[Termination "ValentinDragnev won on time"]

1. e4 {[%clk 0:03:00.9]} 1... e5 {[%clk 0:02:59.1]} 2. Nf3 {[%clk 0:03:00.1]}
2... Nf6 {[%clk 0:02:58.7]} 3. Nxe5 {[%clk 0:02:59.9]} 3... d6 {[%clk
0:02:58.3]} 4. Nf3 {[%clk 0:03:00.1]} 4... Nxe4 {[%clk 0:02:58.9]} 5. d4 {[%clk
0:03:01]} 5... d5 {[%clk 0:02:56.9]} 6. Bd3 {[%clk 0:03:01.7]} 6... Bd6 {[%clk
0:02:57]} 7. O-O {[%clk 0:03:01.4]} 7... O-O {[%clk 0:02:57.4]} 8. c4 {[%clk
0:03:01.6]} 8... c6 {[%clk 0:02:58.1]} 9. cxd5 {[%clk 0:03:02.5]} 9... cxd5
{[%clk 0:02:59]} 10. Nc3 {[%clk 0:03:02.9]} 10... Re8 {[%clk 0:02:46.9]} 11. Re1
{[%clk 0:02:53.9]} 11... Nxc3 {[%clk 0:02:46.8]} 12. Rxe8+ {[%clk 0:02:52.2]}
12... Qxe8 {[%clk 0:02:47.7]} 13. bxc3 {[%clk 0:02:53.1]} 13... h6 {[%clk
0:02:48.3]} 14. Rb1 {[%clk 0:02:52.3]} 14... Nd7 {[%clk 0:02:43.9]} 15. c4
{[%clk 0:02:22.2]} 15... dxc4 {[%clk 0:02:42.1]} 16. Bxc4 {[%clk 0:02:23.1]}
16... Nb6 {[%clk 0:02:42.7]} 17. Bb3 {[%clk 0:02:17.2]} 17... Be6 {[%clk
0:02:38.4]} 18. d5 {[%clk 0:02:14.8]} 18... Bg4 {[%clk 0:02:32.8]} 19. Be3
{[%clk 0:02:10.3]} 19... Rc8 {[%clk 0:02:30.5]} 20. h3 {[%clk 0:02:09.8]} 20...
Bf5 {[%clk 0:02:29.7]} 21. Rc1 {[%clk 0:02:07.4]} 21... Rxc1 {[%clk 0:02:22.7]}
22. Qxc1 {[%clk 0:02:08.3]} 22... Qe4 {[%clk 0:02:19.2]} 23. Nd4 {[%clk
0:01:52.6]} 23... Bd7 {[%clk 0:02:04.6]} 24. Nc2 {[%clk 0:00:43.8]} 24... Qe5
{[%clk 0:01:51.5]} 25. f4 {[%clk 0:00:36.1]} 25... Qe4 {[%clk 0:01:51.8]} 26.
Qd2 {[%clk 0:00:33.3]} 26... Nc4 {[%clk 0:01:40.1]} 27. Bxc4 {[%clk 0:00:29.4]}
27... Qxc4 {[%clk 0:01:41]} 28. Bxa7 {[%clk 0:00:22.9]} 28... Bxf4 {[%clk
0:01:38.2]} 29. Qd4 {[%clk 0:00:16.8]} 29... Qxa2 {[%clk 0:01:24.6]} 30. Qxf4
{[%clk 0:00:16.4]} 30... Qxa7+ {[%clk 0:01:25]} 31. Kh2 {[%clk 0:00:15]} 31...
Qa4 {[%clk 0:01:15.9]} 32. Qc7 {[%clk 0:00:09.8]} 32... Be8 {[%clk 0:00:55.9]}
33. Ne3 {[%clk 0:00:06.5]} 33... Qd7 {[%clk 0:00:54.2]} 34. d6 {[%clk
0:00:04.7]} 34... b5 {[%clk 0:00:23.9]} 35. Nd5 {[%clk 0:00:04.2]} 35... Qe6
{[%clk 0:00:22.9]} 36. Ne7+ {[%clk 0:00:03.7]} 36... Kh7 {[%clk 0:00:23.1]} 37.
Qd8 {[%clk 0:00:03.7]} 37... Qd7 {[%clk 0:00:15.1]} 38. Qxd7 {[%clk 0:00:04]}
38... Bxd7 {[%clk 0:00:16]} 39. Nd5 {[%clk 0:00:04.6]} 39... Be6 {[%clk
0:00:14.6]} 40. Kg3 {[%clk 0:00:03.2]} 40... Kg6 {[%clk 0:00:13.3]} 41. Kf4
{[%clk 0:00:02.6]} 41... f6 {[%clk 0:00:13.8]} 42. Nb6 {[%clk 0:00:02.2]} 42...
b4 {[%clk 0:00:13.6]} 43. Ke4 {[%clk 0:00:02.1]} 43... Kf7 {[%clk 0:00:13.4]}
0-1

[Event "Early-Titled-Tuesday-Blitz-February-06-2024"]
[Site "Chess.com"]
[Date "2024.02.06"]
[Round "11"]
[White "tolia123"]
[Black "Roedor"]
[Result "1-0"]
[WhiteElo "2180"]
[BlackElo "2311"]
[TimeControl "180+1"]
[EndTime "10:06:55 PST"]
[Termination "tolia123 won by checkmate"]

1. d4 {[%clk 0:03:00.9]} 1... Nf6 {[%clk 0:02:58.2]} 2. Nc3 {[%clk 0:03:00.1]}
2... d5 {[%clk 0:02:57.5]} 3. Bf4 {[%clk 0:03:00.4]} 3... g6 {[%clk 0:02:57.4]}
4. Qd2 {[%clk 0:03:00]} 4... c6 {[%clk 0:02:55]} 5. O-O-O {[%clk 0:02:56.3]}
5... b5 {[%clk 0:02:55]} 6. e3 {[%clk 0:02:40.7]} 6... Nbd7 {[%clk 0:02:53.9]}
7. f3 {[%clk 0:02:36]} 7... Qa5 {[%clk 0:02:36.1]} 8. Kb1 {[%clk 0:02:33.5]}
8... Nb6 {[%clk 0:02:35.3]} 9. Nxd5 {[%clk 0:02:28.8]} 9... Qxd2 {[%clk
0:02:12.3]} 10. Nxf6+ {[%clk 0:02:21.8]} 10... exf6 {[%clk 0:02:12.4]} 11. Rxd2
{[%clk 0:02:22.7]} 11... Nd5 {[%clk 0:02:11.4]} 12. Bg3 {[%clk 0:02:13.5]} 12...
f5 {[%clk 0:02:10]} 13. e4 {[%clk 0:02:12.5]} 13... fxe4 {[%clk 0:02:08.2]} 14.
fxe4 {[%clk 0:02:13.4]} 14... Nf6 {[%clk 0:02:08.4]} 15. Bd3 {[%clk 0:02:10.2]}
15... Bh6 {[%clk 0:02:03.9]} 16. Rf2 {[%clk 0:02:07.9]} 16... Ng4 {[%clk
0:02:04]} 17. Re2 {[%clk 0:02:04.6]} 17... O-O {[%clk 0:01:57.9]} 18. h3 {[%clk
0:02:04.8]} 18... Ne3 {[%clk 0:01:50.2]} 19. Nf3 {[%clk 0:01:44.8]} 19... Be6
{[%clk 0:01:47.5]} 20. b3 {[%clk 0:01:41.6]} 20... f5 {[%clk 0:01:39.5]} 21.
Rhe1 {[%clk 0:01:15]} 21... f4 {[%clk 0:01:31]} 22. Bf2 {[%clk 0:01:11.7]} 22...
Nxg2 {[%clk 0:01:25.7]} 23. Rg1 {[%clk 0:01:10.5]} 23... Ne3 {[%clk 0:01:25.7]}
24. Ne5 {[%clk 0:01:09.6]} 24... Rac8 {[%clk 0:00:36.3]} 25. h4 {[%clk
0:01:09.2]} 25... f3 {[%clk 0:00:33.7]} 26. Rxe3 {[%clk 0:00:47.5]} 26... Bxe3
{[%clk 0:00:23.2]} 27. Bxe3 {[%clk 0:00:48.4]} 27... f2 {[%clk 0:00:23.6]} 28.
Rf1 {[%clk 0:00:47]} 28... Bh3 {[%clk 0:00:12.2]} 29. Rxf2 {[%clk 0:00:45]}
29... Rxf2 {[%clk 0:00:12.8]} 30. Bxf2 {[%clk 0:00:45.9]} 30... Kg7 {[%clk
0:00:11.2]} 31. Bg3 {[%clk 0:00:40.7]} 31... Kf6 {[%clk 0:00:08]} 32. d5 {[%clk
0:00:36.5]} 32... cxd5 {[%clk 0:00:06.5]} 33. exd5 {[%clk 0:00:37.4]} 33... Bf5
{[%clk 0:00:02.9]} 34. Bxf5 {[%clk 0:00:34.7]} 34... Kxf5 {[%clk 0:00:03.8]} 35.
Nc6 {[%clk 0:00:34.6]} 35... Kg4 {[%clk 0:00:03.3]} 36. Bf2 {[%clk 0:00:29]}
36... Kf3 {[%clk 0:00:02.7]} 37. Bxa7 {[%clk 0:00:28.3]} 37... h6 {[%clk
0:00:02.9]} 38. c4 {[%clk 0:00:27.3]} 38... bxc4 {[%clk 0:00:02.8]} 39. bxc4
{[%clk 0:00:28.2]} 39... g5 {[%clk 0:00:03.6]} 40. hxg5 {[%clk 0:00:28.5]} 40...
hxg5 {[%clk 0:00:04.5]} 41. Ne5+ {[%clk 0:00:26.4]} 41... Ke4 {[%clk 0:00:03.9]}
42. Nf7 {[%clk 0:00:25.5]} 42... g4 {[%clk 0:00:03.6]} 43. d6 {[%clk 0:00:25]}
43... g3 {[%clk 0:00:03.4]} 44. d7 {[%clk 0:00:25.5]} 44... Ra8 {[%clk
0:00:01.9]} 45. d8=Q {[%clk 0:00:25.3]} 45... Rxd8 {[%clk 0:00:02]} 46. Nxd8
{[%clk 0:00:26.2]} 46... Kd3 {[%clk 0:00:01.9]} 47. c5 {[%clk 0:00:25.6]} 47...
g2 {[%clk 0:00:02.7]} 48. c6 {[%clk 0:00:26.2]} 48... Kc4 {[%clk 0:00:02.8]} 49.
c7 {[%clk 0:00:26.2]} 49... Kb5 {[%clk 0:00:02.8]} 50. c8=Q {[%clk 0:00:26.1]}
50... Ka4 {[%clk 0:00:02.6]} 51. Qc4+ {[%clk 0:00:25.6]} 51... Ka5 {[%clk
0:00:02.6]} 52. Nb7# {[%clk 0:00:26]} 1-0

[Event "Early-Titled-Tuesday-Blitz-February-06-2024"]
[Site "Chess.com"]
[Date "2024.02.06"]
[Round "11"]
[White "Barath1308"]
[Black "arnash_bauyrzhan"]
[Result "1-0"]
[WhiteElo "2391"]
[BlackElo "2265"]
[TimeControl "180+1"]
[EndTime "10:06:56 PST"]
[Termination "Barath1308 won on time"]

1. b3 {[%clk 0:02:58.3]} 1... Nc6 {[%clk 0:02:57.7]} 2. Bb2 {[%clk 0:02:58.8]}
2... e5 {[%clk 0:02:57.8]} 3. c4 {[%clk 0:02:59.5]} 3... Nf6 {[%clk 0:02:57.6]}
4. e3 {[%clk 0:02:59.7]} 4... d5 {[%clk 0:02:56.8]} 5. cxd5 {[%clk 0:03:00.4]}
5... Nxd5 {[%clk 0:02:57]} 6. a3 {[%clk 0:03:01.3]} 6... Be7 {[%clk 0:02:56.8]}
7. Qc2 {[%clk 0:03:00.5]} 7... Be6 {[%clk 0:02:55]} 8. Nf3 {[%clk 0:03:01]} 8...
f6 {[%clk 0:02:52.9]} 9. b4 {[%clk 0:03:01.2]} 9... a6 {[%clk 0:02:52.3]} 10. d3
{[%clk 0:03:01.5]} 10... O-O {[%clk 0:02:51.6]} 11. Nbd2 {[%clk 0:03:02.1]}
11... Qe8 {[%clk 0:02:45.6]} 12. Be2 {[%clk 0:03:01.7]} 12... Rd8 {[%clk
0:02:36.7]} 13. O-O {[%clk 0:03:00.5]} 13... Qg6 {[%clk 0:02:34.8]} 14. Kh1
{[%clk 0:02:59.8]} 14... Kh8 {[%clk 0:02:32]} 15. Ne4 {[%clk 0:02:57.5]} 15...
Qf7 {[%clk 0:01:48.5]} 16. Rg1 {[%clk 0:02:54.3]} 16... Bd6 {[%clk 0:01:46]} 17.
g4 {[%clk 0:02:53.5]} 17... Nde7 {[%clk 0:01:39.9]} 18. Rg3 {[%clk 0:02:52.9]}
18... Bd5 {[%clk 0:01:38.8]} 19. Rag1 {[%clk 0:02:51.5]} 19... Ng6 {[%clk
0:01:27.4]} 20. Rh3 {[%clk 0:02:34.9]} 20... Nce7 {[%clk 0:01:16.3]} 21. Rgg3
{[%clk 0:02:28.3]} 21... b6 {[%clk 0:00:58.6]} 22. Kg1 {[%clk 0:02:25.8]} 22...
c5 {[%clk 0:00:56.3]} 23. bxc5 {[%clk 0:02:14.6]} 23... bxc5 {[%clk 0:00:56.3]}
24. Nfd2 {[%clk 0:02:11.7]} 24... f5 {[%clk 0:00:40]} 25. Ng5 {[%clk 0:02:08]}
25... Qe8 {[%clk 0:00:21.3]} 26. Nxh7 {[%clk 0:02:01.8]} 26... Kg8 {[%clk
0:00:20.7]} 27. gxf5 {[%clk 0:01:57.6]} 27... Rxf5 {[%clk 0:00:17.4]} 28. e4
{[%clk 0:01:55.3]} 28... Nf4 {[%clk 0:00:15]} 29. Bg4 {[%clk 0:01:07.4]} 29...
Nxh3+ {[%clk 0:00:14.1]} 30. Rxh3 {[%clk 0:01:07.7]} 30... Rf4 {[%clk
0:00:11.8]} 31. f3 {[%clk 0:01:02.4]} 31... Qg6 {[%clk 0:00:10.5]} 32. exd5
{[%clk 0:00:55.8]} 32... Nf5 {[%clk 0:00:07.2]} 33. Ne4 {[%clk 0:00:51.7]} 33...
Rxg4+ {[%clk 0:00:07.3]} 34. fxg4 {[%clk 0:00:50.8]} 34... Qxg4+ {[%clk
0:00:07.9]} 35. Qg2 {[%clk 0:00:47.5]} 35... Qd1+ {[%clk 0:00:05]} 36. Qf1
{[%clk 0:00:47.7]} 36... Qg4+ {[%clk 0:00:04.8]} 37. Ng3 {[%clk 0:00:45.7]}
37... Ne3 {[%clk 0:00:03.3]} 38. Nf6+ {[%clk 0:00:30.1]} 38... gxf6 {[%clk
0:00:02.9]} 39. Qxf6 {[%clk 0:00:30.6]} 39... Qxh3 {[%clk 0:00:02.9]} 40. Qxd8+
{[%clk 0:00:29.3]} 40... Bf8 {[%clk 0:00:03.5]} 41. Qg5+ {[%clk 0:00:29.2]}
41... Bg7 {[%clk 0:00:04]} 42. Qxe3 {[%clk 0:00:29.4]} 42... Qg4 {[%clk
0:00:03.1]} 43. Bxe5 {[%clk 0:00:28.3]} 43... Qd1+ {[%clk 0:00:02.8]} 44. Kg2
{[%clk 0:00:28.2]} 44... Qc2+ {[%clk 0:00:03.1]} 45. Kh3 {[%clk 0:00:27.9]}
45... Qb3 {[%clk 0:00:01.7]} 46. Qg5 {[%clk 0:00:26.2]} 1-0